bitfinex-derivatives/quotes_BTCF0:USTF0_20251103
["timestamp","ask_amount","ask_price","bid_price","bid_amount"]
[1762132152618,0.1499678,109800.0,109790.0,0.34068]
[1762132152821,0.1499678,109800.0,109790.0,0.3174]
[1762132153016,0.1135831,109790.0,109780.0,0.03611]
[1762132153220,0.02249,109770.0,109760.0,0.2859625]
[1762132153514,0.1367265,109780.0,109770.0,0.1362597]
[1762132153718,0.1367265,109780.0,109770.0,0.04515]
[1762132153928,0.1367265,109780.0,109770.0,0.36255]
[1762132154121,0.1367265,109780.0,109770.0,0.4536597]
[1762132154927,0.1367265,109780.0,109770.0,0.04815]
[1762132155121,0.1367265,109780.0,109770.0,0.4566197]
[1762132155720,0.1367265,109780.0,109770.0,0.36551]
[1762132156437,0.1367265,109780.0,109770.0,0.04815]
[1762132156628,0.1367265,109780.0,109770.0,0.36551]
[1762132156824,0.1367265,109780.0,109770.0,0.4576197]
[1762132157327,0.1367265,109780.0,109770.0,0.4536197]
[1762132157518,0.1367265,109780.0,109770.0,0.4576197]
[1762132157918,0.1367265,109780.0,109770.0,0.4536197]
[1762132158123,0.134427,109790.0,109780.0,0.01292]
[1762132158324,0.15641504,109790.0,109780.0,0.05791]
[1762132158530,0.134427,109790.0,109780.0,0.05791]
[1762132159231,0.15642607,109790.0,109780.0,0.1490115]
[1762132159622,0.134427,109790.0,109780.0,0.1490115]
[1762132160022,0.134427,109790.0,109780.0,0.1510115]
[1762132160428,0.134427,109790.0,109780.0,0.05991]
[1762132160929,0.134427,109790.0,109780.0,0.1510115]
[1762132161633,0.15645471,109790.0,109780.0,0.1510115]
[1762132162126,0.15645471,109790.0,109780.0,0.05991]
[1762132162533,0.15645471,109790.0,109780.0,0.1510115]
[1762132163135,0.15645471,109790.0,109780.0,0.05991]
[1762132163835,0.15645471,109790.0,109780.0,0.37727]
[1762132164232,0.15645471,109790.0,109780.0,0.05991]
[1762132164432,0.15645471,109790.0,109780.0,0.37727]
[1762132164830,0.15645471,109790.0,109780.0,0.4683717]
[1762132165030,0.15645471,109790.0,109780.0,0.37727]
[1762132167739,0.15645471,109790.0,109780.0,0.4683717]
[1762132168534,0.06535771,109790.0,109780.0,0.4683717]
[1762132169043,0.15645111,109790.0,109780.0,0.4683717]
[1762132169743,0.15645111,109790.0,109780.0,0.37727]
[1762132169944,0.15645111,109790.0,109780.0,0.37723]
[1762132170143,0.15645111,109790.0,109780.0,0.1510117]
[1762132170342,0.04338771,109790.0,109780.0,0.59008454]
[1762132170544,0.06774375,109810.0,109800.0,0.1481851]
[1762132170847,0.04362,109810.0,109800.0,0.58725794]
[1762132171044,0.04536375,109820.0,109810.0,0.1481768]
[1762132171241,0.15880745,109830.0,109820.0,0.0571]
[1762132171449,0.15880745,109830.0,109820.0,0.37442]
[1762132172362,0.1346837,109830.0,109820.0,0.37442]
[1762132172758,0.1346837,109830.0,109820.0,0.58724134]
[1762132172759,0.02638,109830.0,109820.0,0.58724134]
[1762132172952,0.1174402,109830.0,109820.0,0.37442]
[1762132173254,0.11498439,109840.0,109820.0,0.71996134]
[1762132173455,0.1346394,109880.0,109870.0,0.0571]
[1762132173756,0.1346471,109870.0,109860.0,0.0571]
[1762132173960,0.1346471,109870.0,109860.0,0.04413]
[1762132175158,0.04362,109870.0,109860.0,0.04413]
[1762132175766,0.1346471,109870.0,109860.0,0.04413]
[1762132175949,0.1356471,109870.0,109860.0,0.04413]
[1762132179559,0.001,109870.0,109860.0,0.17885284]
[1762132179760,0.1356471,109870.0,109860.0,0.0571]
[1762132179966,0.1356471,109870.0,109860.0,0.3743]
[1762132180259,0.1346554,109860.0,109850.0,0.03574]
[1762132180456,0.1346554,109860.0,109850.0,0.0571]
[1762132181556,0.1346554,109860.0,109850.0,0.0581]
[1762132183164,0.25640824,109860.0,109850.0,0.001]
[1762132183361,0.85640824,109860.0,109850.0,0.001]
[1762132184265,0.7346554,109860.0,109850.0,0.001]
[1762132184468,0.7346554,109860.0,109850.0,0.04513]
[1762132184768,0.7418154,109860.0,109850.0,0.04513]
[1762132185759,0.7418154,109860.0,109850.0,0.02377]
[1762132187067,0.7418154,109860.0,109850.0,0.04539]
[1762132187463,0.7418154,109860.0,109850.0,0.05923]
[1762132188668,0.1346554,109860.0,109850.0,0.05923]
[1762132189061,0.1346554,109860.0,109850.0,0.1502737]
[1762132189261,0.1346554,109860.0,109850.0,0.05923]
[1762132191460,0.1418154,109860.0,109850.0,0.001]
[1762132191971,0.1418154,109860.0,109850.0,0.02397]
[1762132192170,0.1346554,109860.0,109850.0,0.05943]
[1762132193072,0.1346554,109860.0,109850.0,0.1504737]
[1762132194973,0.1346554,109860.0,109850.0,0.05943]
[1762132195479,0.1346554,109860.0,109850.0,0.1504737]
[1762132195975,0.1346554,109860.0,109850.0,0.05943]
[1762132196162,0.1346554,109860.0,109850.0,0.1504737]
[1762132197277,0.1349135,109870.0,109860.0,0.1494654]
[1762132197464,0.1349135,109870.0,109860.0,0.05843]
[1762132198271,0.1349135,109870.0,109860.0,0.1494654]
[1762132199179,0.15646942,109870.0,109860.0,0.1494654]
[1762132199667,0.15646942,109870.0,109860.0,0.05843]
[1762132200675,0.1349154,109860.0,109850.0,0.37551]
[1762132200875,0.1349154,109860.0,109850.0,0.4665537]
[1762132201071,0.1349154,109860.0,109850.0,0.37551]
[1762132201272,0.15651167,109860.0,109850.0,0.37551]
[1762132201675,0.15651167,109860.0,109850.0,0.37651]
[1762132201874,0.15651167,109860.0,109850.0,0.05943]
[1762132203571,0.15651167,109860.0,109850.0,0.1504736]
[1762132203771,0.15651167,109860.0,109850.0,0.05943]
[1762132204171,0.15651167,109860.0,109850.0,0.1504736]
[1762132205485,0.15651167,109860.0,109850.0,0.05943]
[1762132207775,0.16367167,109860.0,109850.0,0.001]
[1762132208274,0.16367167,109860.0,109850.0,0.02397]
[1762132208477,0.16367167,109860.0,109850.0,0.04559]
[1762132209982,0.16367167,109860.0,109850.0,0.02397]
[1762132210183,0.16367167,109860.0,109850.0,0.001]
[1762132210482,0.16367167,109860.0,109850.0,0.02397]
[1762132210784,0.48071167,109860.0,109850.0,0.001]
[1762132211487,0.65907902,109860.0,109850.0,0.001]
[1762132211789,1.291382,109860.0,109850.0,0.001]
[1762132211982,1.11301465,109860.0,109850.0,0.001]
[1762132212291,0.18881465,109860.0,109850.0,0.05943]
[1762132212586,0.47351167,109860.0,109850.0,0.05943]
[1762132213072,0.50581465,109860.0,109850.0,0.05943]
[1762132213277,0.15651167,109860.0,109850.0,0.05943]
[1762132213679,0.18881465,109860.0,109850.0,0.05943]
[1762132214273,0.18881465,109860.0,109850.0,0.05843]
[1762132214480,0.18881465,109860.0,109850.0,0.06443]
[1762132214879,0.19597465,109860.0,109850.0,0.06243]
[1762132215279,0.19597465,109860.0,109850.0,0.004]
[1762132215782,0.24412776,109860.0,109850.0,0.004]
[1762132216580,0.1362712,109840.0,109830.0,0.2992793]
[1762132216887,0.15786747,109840.0,109830.0,0.2992793]
[1762132217887,0.15786747,109840.0,109830.0,0.3042793]
[1762132218585,0.02159627,109840.0,109830.0,0.3042793]
[1762132218783,0.02159627,109840.0,109830.0,0.48264665]
[1762132219385,0.02159627,109840.0,109830.0,0.47764665]
[1762132219689,0.02159627,109840.0,109830.0,0.48264665]
[1762132220284,0.0910331,109860.0,109850.0,0.04555]
[1762132220484,0.04458609,109860.0,109850.0,0.32798495]
[1762132220684,0.02148609,109860.0,109850.0,0.32798495]
[1762132220888,0.05540298,109880.0,109870.0,0.0509]
[1762132221078,0.0231,109880.0,109870.0,0.54626735]
[1762132221388,0.1141126,109880.0,109870.0,0.54626735]
[1762132221586,0.1362326,109880.0,109870.0,0.54626735]
[1762132221790,0.1362326,109880.0,109870.0,0.3679]
[1762132222779,0.1362326,109880.0,109870.0,0.36255]
[1762132223289,0.1362326,109880.0,109870.0,0.36455]
[1762132223886,0.1362326,109880.0,109870.0,0.04755]
[1762132224083,0.1362326,109880.0,109870.0,0.36451]
[1762132224487,0.1490026,109880.0,109870.0,0.36451]
[1762132226594,0.04522,109880.0,109870.0,0.37028]
[1762132226801,0.136232,109880.0,109870.0,0.37028]
[1762132227704,0.149452,109880.0,109870.0,0.37028]
[1762132228497,0.05844,109880.0,109870.0,0.37028]
[1762132228798,0.149452,109880.0,109870.0,0.37028]
[1762132230305,0.1446423,109890.0,109880.0,0.05792]
[1762132230501,0.04442,109890.0,109880.0,0.1489319]
[1762132230696,0.1354236,109890.0,109880.0,0.1489319]
[1762132230897,0.1354236,109890.0,109880.0,0.05792]
[1762132231206,0.04442,109890.0,109880.0,0.1489319]
[1762132231401,0.1486437,109890.0,109880.0,0.04463]
[1762132231602,0.1354318,109880.0,109870.0,0.36359]
[1762132231809,0.1486518,109880.0,109870.0,0.36359]
[1762132232508,0.1486518,109880.0,109870.0,0.36159]
[1762132233097,0.1486518,109880.0,109870.0,0.36359]
[1762132233508,0.1486518,109880.0,109870.0,0.02372]
[1762132235106,0.4655318,109880.0,109870.0,0.04663]
[1762132237205,0.4655318,109880.0,109870.0,0.002]
[1762132237405,0.4655318,109880.0,109870.0,0.02372]
[1762132237707,0.4655318,109880.0,109870.0,0.002]
[1762132237914,0.4655318,109880.0,109870.0,0.04663]
[1762132238912,0.4655318,109880.0,109870.0,0.002]
[1762132239405,0.4655318,109880.0,109870.0,0.02372]
[1762132239613,0.4655318,109880.0,109870.0,0.04663]
[1762132242409,0.1486518,109880.0,109870.0,0.1376504]
[1762132242607,0.4655318,109880.0,109870.0,0.1376504]
[1762132242813,0.4655318,109880.0,109870.0,0.04663]
[1762132243611,0.4654918,109880.0,109870.0,0.04663]
[1762132243813,0.4654918,109880.0,109870.0,0.1376502]
[1762132244215,0.1486518,109880.0,109870.0,0.1509402]
[1762132244513,0.1354318,109880.0,109870.0,0.1509402]
[1762132244902,0.1483218,109880.0,109870.0,0.3006402]
[1762132245213,0.1483218,109880.0,109870.0,0.20962]
[1762132248316,0.1483218,109880.0,109870.0,0.25868704]
[1762132248514,0.02309,109880.0,109870.0,0.30686746]
[1762132248716,0.1350291,109890.0,109880.0,0.04973]
[1762132248921,0.15123033,109900.0,109890.0,0.05694]
[1762132249214,0.02287,109900.0,109890.0,0.2032545]
[1762132249519,0.1479049,109900.0,109890.0,0.2032545]
[1762132250015,0.1479049,109900.0,109890.0,0.09316704]
[1762132250318,0.1479131,109890.0,109880.0,0.41002245]
[1762132250811,0.1479131,109890.0,109880.0,0.09318245]
[1762132251114,0.1479214,109880.0,109870.0,0.24288245]
[1762132252416,0.1479214,109880.0,109870.0,0.24588245]
[1762132253120,0.1479214,109880.0,109870.0,0.1968]
[1762132253809,0.1479214,109880.0,109870.0,0.0471]
[1762132255419,0.1350314,109880.0,109870.0,0.05994]
[1762132257224,0.1350314,109880.0,109870.0,0.10902245]
[1762132257922,0.1350242,109890.0,109880.0,0.05082]
[1762132258225,0.1479142,109890.0,109880.0,0.0441]
[1762132258822,0.53048237,109910.0,109900.0,0.02299]
[1762132259025,0.51941502,109910.0,109900.0,0.0441]
[1762132259523,0.20261502,109910.0,109900.0,0.0441]
[1762132259933,0.19323004,109910.0,109900.0,0.0441]
[1762132260120,0.16901243,109910.0,109900.0,0.05694]
[1762132260321,0.16913243,109910.0,109900.0,0.0441]
[1762132260625,0.1350233,109890.0,109880.0,0.25707092]
[1762132260833,0.1479133,109890.0,109880.0,0.41666245]
[1762132261324,0.1479133,109890.0,109880.0,0.09318245]
[1762132261716,0.1479133,109890.0,109880.0,0.07207245]
[1762132262022,0.1479133,109890.0,109880.0,0.0451]
[1762132263119,0.16914407,109890.0,109880.0,0.0451]
[1762132263721,0.16914407,109890.0,109880.0,0.001]
[1762132264225,0.79336168,109890.0,109880.0,0.001]
[1762132264617,0.1432282,109860.0,109850.0,0.09327158]
[1762132264921,0.1432282,109860.0,109850.0,0.10611158]
[1762132264922,0.1350482,109860.0,109850.0,0.10611158]
[1762132265122,0.02287,109860.0,109850.0,0.10611158]
[1762132265317,0.02287,109860.0,109850.0,0.19714808]
[1762132265528,0.1432202,109870.0,109860.0,0.05196]
[1762132265732,0.04402,109870.0,109860.0,0.05196]
[1762132266121,0.05691,109880.0,109870.0,0.05694]
[1762132266932,0.1479212,109880.0,109870.0,0.05694]
[1762132267130,0.1479212,109880.0,109870.0,0.05894]
[1762132267331,0.1479212,109880.0,109870.0,0.0461]
[1762132267933,0.1479212,109880.0,109870.0,0.02499]
[1762132268134,0.1479212,109880.0,109870.0,0.002]
[1762132268535,0.16912421,109880.0,109870.0,0.002]
[1762132269536,0.04402,109860.0,109850.0,0.10611158]
[1762132270335,0.04402,109860.0,109850.0,0.22770871]
[1762132270836,0.04402,109860.0,109850.0,0.23170871]
[1762132271137,0.02287,109860.0,109850.0,0.32274521]
[1762132271338,0.05691,109870.0,109860.0,0.0441]
[1762132271537,0.04402,109870.0,109860.0,0.0441]
[1762132271830,0.04402,109880.0,109870.0,0.0441]
[1762132272036,0.04402,109880.0,109870.0,0.16569713]
[1762132272230,0.02287,109880.0,109870.0,0.16569713]
[1762132272430,0.1479177,109890.0,109880.0,0.0441]
[1762132272631,0.06522593,109890.0,109880.0,0.16569713]
[1762132272836,0.04402,109890.0,109880.0,0.16569713]
[1762132273230,0.4206117,109900.0,109880.0,0.30579138]
[1762132273231,0.1038917,109900.0,109880.0,0.30579138]
[1762132273431,0.1479117,109900.0,109890.0,0.0441]
[1762132274237,0.1350235,109890.0,109880.0,0.09418245]
[1762132276138,0.1350235,109890.0,109880.0,0.05008245]
[1762132276641,0.1497318,109880.0,109870.0,0.09291245]
[1762132277826,0.1497318,109880.0,109870.0,0.09491245]
[1762132279833,0.05872,109880.0,109870.0,0.10775245]
[1762132280040,0.04516,109880.0,109870.0,0.22934958]
[1762132280632,0.04516,109890.0,109880.0,0.05667]
[1762132280837,0.04516,109890.0,109880.0,0.31836168]
[1762132281437,0.1490507,109900.0,109890.0,0.04383]
[1762132281639,0.1361555,109900.0,109890.0,0.05667]
[1762132281835,0.1361555,109900.0,109890.0,0.22734958]
[1762132282140,0.04516,109900.0,109890.0,0.10575245]
[1762132282339,0.04516,109900.0,109890.0,0.19675625]
[1762132282544,0.04516,109900.0,109890.0,0.10575245]
[1762132282746,0.1361555,109900.0,109890.0,0.10575245]
[1762132283439,0.1371555,109900.0,109890.0,0.10575245]
[1762132284644,0.1498355,109900.0,109890.0,0.09291245]
[1762132285045,0.1498355,109900.0,109890.0,0.04383]
[1762132286143,0.0910035,109890.0,109880.0,0.04908245]
[1762132286346,0.1476035,109890.0,109880.0,0.09452245]
[1762132287762,0.1476035,109890.0,109880.0,0.09552245]
[1762132290451,0.1476035,109890.0,109880.0,0.10699245]
[1762132291854,0.1476035,109890.0,109880.0,0.25669245]
[1762132293453,0.1476035,109890.0,109880.0,0.24522245]
[1762132294645,0.1476035,109890.0,109880.0,0.001]
[1762132294838,0.26920063,109890.0,109880.0,0.001]
[1762132295043,0.1476035,109890.0,109880.0,0.001]
[1762132297444,0.89040185,109890.0,109880.0,1e-07]
[1762132298550,0.02227,109870.0,109860.0,0.04908245]
[1762132298754,0.0566,109870.0,109860.0,0.09452245]
[1762132299050,0.04392,109870.0,109860.0,0.10805245]
[1762132299258,0.04392,109870.0,109860.0,0.32067818]
[1762132299757,0.04392,109870.0,109860.0,0.27159573]
[1762132299949,0.04392,109880.0,109870.0,0.05055]
[1762132300150,0.04392,109880.0,109870.0,0.31223229]
[1762132300557,0.04392,109880.0,109870.0,0.26316753]
[1762132300853,0.04392,109880.0,109870.0,0.17214713]
[1762132301051,0.04392,109880.0,109870.0,0.22121798]
[1762132301355,0.04392,109880.0,109870.0,0.09962085]
[1762132301556,0.04392,109880.0,109870.0,0.10162085]
[1762132301758,0.04392,109880.0,109870.0,0.05255]
[1762132302054,0.04392,109880.0,109870.0,0.10162841]
[1762132303356,0.0566,109880.0,109870.0,0.10162841]
[1762132303958,0.0566,109880.0,109870.0,0.09651841]
[1762132305361,0.1476119,109880.0,109870.0,0.09651841]
[1762132306261,0.1132819,109880.0,109870.0,0.23156554]
[1762132306455,0.1482776,109890.0,109880.0,0.04435]
[1762132306664,0.1482776,109890.0,109880.0,0.22021525]
[1762132306665,0.1355976,109890.0,109880.0,0.22021525]
[1762132307256,0.1355976,109890.0,109880.0,0.09861812]
[1762132307854,0.1495076,109890.0,109880.0,0.36099]
[1762132308061,0.1495076,109890.0,109880.0,0.41006446]
[1762132308454,0.1495076,109890.0,109880.0,0.38722446]
[1762132309064,0.1495076,109890.0,109880.0,0.41006446]
[1762132309760,0.1355976,109890.0,109880.0,0.54511159]
[1762132310154,0.04459,109890.0,109880.0,0.54511159]
[1762132310460,0.04459,109890.0,109880.0,0.63612359]
[1762132310655,0.04459,109890.0,109880.0,0.54511159]
[1762132311161,0.04459,109890.0,109880.0,0.42351446]
[1762132313063,0.0585,109890.0,109880.0,0.42351446]
[1762132313364,0.04459,109890.0,109880.0,0.42351446]
[1762132313566,0.0585,109890.0,109880.0,0.41006446]
[1762132314468,0.0585,109890.0,109880.0,0.42351446]
[1762132314659,0.04459,109890.0,109880.0,0.42351446]
[1762132316174,0.1355936,109890.0,109880.0,0.42351446]
[1762132316774,0.04459,109890.0,109880.0,0.51452636]
[1762132317276,0.1355936,109890.0,109880.0,0.51452636]
[1762132317878,0.1355936,109890.0,109880.0,0.41006446]
[1762132317879,0.1495036,109890.0,109880.0,0.41006446]
[1762132318265,0.1495036,109890.0,109880.0,0.42351446]
[1762132318578,0.1495036,109890.0,109880.0,0.10687446]
[1762132318978,0.1495036,109890.0,109880.0,0.09342446]
[1762132319379,0.1495036,109890.0,109880.0,0.04435]
[1762132320080,0.1495036,109890.0,109880.0,0.09342446]
[1762132320483,0.1495036,109890.0,109880.0,0.04435]
[1762132323175,0.1495036,109890.0,109880.0,0.09342446]
[1762132323875,0.1049222,109880.0,109870.0,0.04909742]
[1762132324075,0.1495122,109880.0,109870.0,0.04909742]
[1762132324282,0.1495122,109880.0,109870.0,0.02151]
[1762132325177,0.1495122,109880.0,109870.0,0.04435]
[1762132325384,0.4660722,109880.0,109870.0,0.0578]
[1762132325581,0.1495122,109880.0,109870.0,0.0578]
[1762132326578,0.1495122,109880.0,109870.0,0.0598]
[1762132327886,0.1356022,109880.0,109870.0,0.0598]
[1762132328087,0.0910122,109880.0,109870.0,0.27241763]
[1762132328290,0.0910122,109880.0,109870.0,0.18139713]
[1762132328584,0.1356022,109880.0,109870.0,0.18139713]
[1762132328788,0.1495122,109880.0,109870.0,0.04635]
[1762132329583,0.4660722,109880.0,109870.0,0.04635]
[1762132329786,0.1495122,109880.0,109870.0,0.04635]
[1762132331292,0.1356022,109880.0,109870.0,0.0598]
[1762132332685,0.1356022,109880.0,109870.0,0.1508206]
[1762132333080,0.135594,109890.0,109880.0,0.0578]
[1762132333282,0.149504,109890.0,109880.0,0.0578]
[1762132333991,0.149504,109890.0,109880.0,0.04435]
[1762132334682,0.149504,109890.0,109880.0,0.02151]
[1762132334880,0.149504,109890.0,109880.0,0.04435]
[1762132335492,0.149504,109890.0,109880.0,0.02151]
[1762132336191,0.149504,109890.0,109860.0,0.07049921]
[1762132336382,0.1471705,109870.0,109860.0,0.11497921]
[1762132336787,0.1339905,109870.0,109860.0,0.11497921]
[1762132337593,0.1339905,109870.0,109860.0,0.11797921]
[1762132338689,0.1339905,109870.0,109860.0,0.20900841]
[1762132339794,0.04297,109870.0,109860.0,0.20900841]
[1762132340096,0.02155,109870.0,109860.0,0.20900841]
[1762132341597,0.02155,109870.0,109860.0,0.22900841]
[1762132341795,0.04297,109880.0,109870.0,0.05783]
[1762132342003,0.05691,109880.0,109870.0,0.05783]
[1762132342490,0.05691,109880.0,109870.0,0.148851]
[1762132343200,0.05691,109880.0,109870.0,0.150851]
[1762132343498,0.05691,109880.0,109870.0,0.1508509]
[1762132343704,0.04297,109880.0,109870.0,0.1508509]
[1762132343895,0.04297,109880.0,109870.0,0.19995004]
[1762132344294,0.091018,109880.0,109870.0,0.15547004]
[1762132344490,0.02155,109880.0,109870.0,0.21995004]
[1762132344691,0.02155,109880.0,109870.0,0.1708509]
[1762132344890,0.1049192,109890.0,109870.0,0.4873309]
[1762132345098,0.1499292,109890.0,109880.0,0.10847786]
[1762132345585,0.1499292,109890.0,109880.0,0.09484786]
[1762132346398,0.1499292,109890.0,109880.0,0.04909786]
[1762132346695,0.1498326,109880.0,109870.0,0.07189786]
[1762132346900,0.1498326,109880.0,109870.0,0.09484786]
[1762132348700,0.1498326,109880.0,109870.0,0.04909786]
[1762132348899,0.1498326,109880.0,109870.0,0.05109786]
[1762132349094,0.04501,109870.0,109860.0,0.04911494]
[1762132349400,0.04501,109860.0,109850.0,0.02288913]
[1762132349696,0.05769,109860.0,109850.0,8.913e-05]
[1762132350498,0.06693778,109860.0,109850.0,8.913e-05]
[1762132350687,0.06693778,109860.0,109850.0,0.02288913]
[1762132350893,0.06693778,109860.0,109850.0,8.913e-05]
[1762132351789,0.06693778,109860.0,109850.0,0.00108913]
[1762132352595,0.06693778,109860.0,109850.0,0.04683913]
[1762132352796,0.04501,109860.0,109850.0,0.06046913]
[1762132353201,0.05769,109860.0,109850.0,0.04683913]
[1762132354998,0.06672994,109860.0,109850.0,0.04683913]
[1762132355197,0.06672994,109860.0,109850.0,0.00108913]
[1762132355602,0.24501928,109860.0,109850.0,0.00108913]
[1762132355904,0.26671941,109860.0,109850.0,0.00108913]
[1762132356296,0.24501928,109860.0,109850.0,0.00108913]
[1762132356607,0.33604848,109860.0,109850.0,0.00108913]
[1762132356791,0.35774207,109860.0,109850.0,0.00108913]
[1762132357396,0.35774207,109860.0,109850.0,0.04683913]
[1762132357397,0.32700854,109860.0,109850.0,0.04683913]
[1762132357601,0.32700854,109860.0,109850.0,0.06046913]
[1762132357602,0.1360392,109860.0,109850.0,0.06046913]
[1762132357791,0.4525192,109860.0,109850.0,0.06046913]
[1762132357997,0.4651992,109860.0,109850.0,0.06046913]
[1762132358199,0.4651992,109860.0,109850.0,0.04683913]
[1762132358498,0.1360392,109860.0,109850.0,0.06046913]
[1762132358699,0.4525192,109860.0,109850.0,0.15150663]
[1762132359105,0.4525192,109860.0,109850.0,0.06046913]
[1762132359298,0.4525192,109860.0,109850.0,0.15150663]
[1762132359898,0.04501,109860.0,109850.0,0.15150663]
[1762132360106,0.1360392,109860.0,109850.0,0.15150663]
[1762132360801,0.1360357,109870.0,109860.0,0.05938]
[1762132361398,0.1360357,109870.0,109860.0,0.1504092]
[1762132361599,0.1360357,109870.0,109860.0,0.05938]
[1762132361902,0.1370357,109870.0,109860.0,0.1504092]
[1762132362503,0.1370357,109870.0,109860.0,0.05938]
[1762132363208,0.1424157,109870.0,109860.0,0.04575]
[1762132363703,0.1360391,109860.0,109850.0,0.05946913]
[1762132365206,0.1487191,109860.0,109850.0,0.00208913]
[1762132365398,0.4651991,109860.0,109850.0,0.00208913]
[1762132365599,0.4651991,109860.0,109850.0,0.05950913]
[1762132365901,0.4525191,109860.0,109850.0,0.05950913]
[1762132366201,0.4525191,109860.0,109850.0,0.00208913]
[1762132366202,0.4651991,109860.0,109850.0,0.00208913]
[1762132366797,0.4651991,109860.0,109850.0,8.913e-05]
[1762132366999,0.1473475,109850.0,109840.0,0.03028688]
[1762132367303,0.1343123,109820.0,109810.0,0.05742]
[1762132368202,0.13438862,109820.0,109810.0,0.05742]
[1762132368410,0.13976862,109820.0,109810.0,0.05742]
[1762132369193,0.13438862,109820.0,109810.0,0.05742]
[1762132369699,0.13538862,109820.0,109810.0,0.06342]
[1762132377208,0.14038862,109820.0,109810.0,0.05021]
[1762132377615,0.14038862,109820.0,109810.0,0.06342]
[1762132380220,0.13538862,109820.0,109810.0,0.06342]
[1762132380418,0.13538862,109820.0,109810.0,0.1544907]
[1762132380617,0.04432632,109820.0,109810.0,0.1544907]
[1762132380817,0.09213872,109820.0,109810.0,0.33278004]
[1762132381022,0.00107632,109820.0,109810.0,0.33278004]
[1762132381212,0.00107632,109820.0,109810.0,0.60278004]
[1762132381526,0.00107632,109820.0,109810.0,0.33278004]
[1762132382018,0.09213872,109820.0,109810.0,0.33278004]
[1762132382722,0.00107632,109820.0,109810.0,0.64278004]
[1762132383018,0.00107632,109820.0,109810.0,0.35278004]
[1762132383614,0.00107632,109820.0,109810.0,0.33278004]
[1762132383814,0.00107632,109820.0,109810.0,0.35278004]
[1762132385826,0.00107632,109820.0,109810.0,0.61278004]
[1762132386918,0.00107632,109820.0,109810.0,0.35278004]
[1762132388319,0.00107632,109820.0,109810.0,0.61278004]
[1762132388921,0.00107632,109820.0,109810.0,0.65278004]
[1762132389525,0.00107632,109820.0,109810.0,0.35278004]
[1762132389726,0.00107632,109820.0,109810.0,0.33278004]
[1762132389922,0.04432632,109820.0,109810.0,0.1544907]
[1762132390126,0.13538882,109820.0,109810.0,0.12857921]
[1762132390320,0.13538882,109820.0,109810.0,0.06342]
[1762132390921,0.13538882,109820.0,109810.0,0.1544907]
[1762132391930,0.13538882,109820.0,109810.0,0.06342]
[1762132393824,0.14844882,109820.0,109810.0,0.05021]
[1762132394025,0.14844882,109820.0,109810.0,0.0274]
[1762132394528,0.02213632,109820.0,109810.0,0.06342]
[1762132394726,0.13538752,109820.0,109810.0,0.06342]
[1762132395430,0.13538752,109820.0,109810.0,0.1544895]
[1762132395925,0.04432632,109820.0,109810.0,0.1544895]
[1762132396126,0.00107632,109820.0,109810.0,0.27617437]
[1762132396720,0.02269632,109820.0,109810.0,0.27617437]
[1762132397734,0.02269632,109820.0,109810.0,0.29617437]
[1762132398626,0.02269632,109820.0,109810.0,0.1744895]
[1762132400332,0.00107632,109820.0,109810.0,0.68133358]
[1762132401135,0.00923126,109850.0,109840.0,0.05529]
[1762132401136,0.1337794,109850.0,109840.0,0.05529]
[1762132401324,0.1337764,109850.0,109840.0,0.1463347]
[1762132401526,0.1337764,109850.0,109840.0,0.17662158]
[1762132402026,0.13743566,109870.0,109860.0,0.05529]
[1762132402027,0.15797881,109870.0,109860.0,0.05529]
[1762132402234,0.15549793,109870.0,109860.0,0.05529]
[1762132402927,0.4502412,109870.0,109860.0,0.05529]
[1762132403129,0.4719734,109870.0,109860.0,0.05529]
[1762132403336,0.4502412,109870.0,109860.0,0.05529]
[1762132405236,0.4502012,109870.0,109860.0,0.05529]
[1762132405538,0.1337612,109870.0,109860.0,0.05529]
[1762132405733,0.4502012,109870.0,109860.0,0.05729]
[1762132405928,0.1337612,109870.0,109860.0,0.05729]
[1762132406328,0.4502012,109870.0,109860.0,0.05729]
[1762132406939,0.4631512,109870.0,109860.0,0.05729]
[1762132407239,0.58483607,109870.0,109860.0,0.002]
[1762132407440,1.18483607,109870.0,109860.0,0.002]
[1762132407635,0.1403662,109850.0,109840.0,0.05346688]
[1762132407829,0.4568062,109850.0,109840.0,0.03028688]
[1762132408031,1.17849107,109850.0,109840.0,0.03028688]
[1762132408231,0.7403662,109850.0,109840.0,0.05346688]
[1762132408530,1.0568062,109850.0,109840.0,0.07515688]
[1762132408842,1.0568062,109850.0,109840.0,0.07715688]
[1762132409037,1.0568062,109850.0,109840.0,0.05546688]
[1762132409232,1.0568062,109850.0,109840.0,0.07715688]
[1762132409634,1.17849107,109850.0,109840.0,0.03228688]
[1762132410638,0.86205107,109850.0,109840.0,0.03228688]
[1762132410826,1.17845107,109850.0,109840.0,0.03228688]
[1762132411226,0.01257,109830.0,109820.0,0.03682]
[1762132411427,0.34154,109830.0,109820.0,0.05851]
[1762132412441,0.34154,109830.0,109820.0,0.06251]
[1762132412640,0.02514,109830.0,109820.0,0.153571]
[1762132412939,0.34154,109830.0,109820.0,0.06251]
[1762132415142,0.4200227,109830.0,109820.0,0.1535666]
[1762132415336,0.32897,109830.0,109820.0,0.1535666]
[1762132415533,0.01257,109830.0,109820.0,0.4535666]
[1762132415842,0.4032248,109840.0,109830.0,0.05851]
[1762132416034,0.1161848,109840.0,109830.0,0.05851]
[1762132417444,0.1161848,109840.0,109830.0,0.06051]
[1762132418437,0.4074351,109850.0,109830.0,0.2383782]
[1762132418637,0.1161751,109850.0,109840.0,0.05851]
[1762132418835,0.1036017,109850.0,109840.0,0.14955]
[1762132419141,0.1036017,109850.0,109840.0,0.05851]
[1762132419342,0.1161717,109850.0,109840.0,0.05851]
[1762132419539,0.11618,109840.0,109830.0,0.03882]
[1762132419733,0.11618,109840.0,109830.0,0.06051]
[1762132420040,1.15426487,109840.0,109830.0,0.002]
[1762132420440,0.1161883,109830.0,109820.0,0.05851]
[1762132420944,0.12539654,109830.0,109820.0,0.05851]
[1762132421144,0.12339654,109830.0,109820.0,0.05851]
[1762132421943,0.12339654,109830.0,109820.0,0.06151]
[1762132422736,0.43979654,109830.0,109820.0,0.06151]
[1762132423241,0.12339654,109830.0,109820.0,0.06151]
[1762132423443,0.43979654,109830.0,109820.0,0.06151]
[1762132423643,0.12339654,109830.0,109820.0,0.06151]
[1762132423842,0.43979654,109830.0,109820.0,0.06151]
[1762132425543,0.4305883,109830.0,109820.0,0.06151]
[1762132425945,0.1141883,109830.0,109820.0,0.06151]
[1762132426244,0.4305883,109830.0,109820.0,0.06151]